[Event "Titled Tuesday Blitz March 08 Early 2022"]
[White "Sanchez, Robert"]
[Black "Samant Aditya S"]
[WhiteFideId "2034360"]
[BlackFideId "35080580"]
[WhiteElo "2259"]
[BlackElo "1916"]
[Result "0-1"]
[Round "02"]
[TimeControl "180+1"]
[Date "2022.03.09"]
[WhiteClock "0:02:36"]
[BlackClock "0:02:34"]

1. e4 {[%clk 0:02:53]}  c5 {[%clk 0:02:59]} 2. Nf3 {[%clk 0:02:52]}  d6 {[%clk 0:02:59]} 3. d4 {[%clk 0:02:53]}  cxd4 {[%clk 0:03:00]} 4. Nxd4 {[%clk 0:02:54]}  Nf6 {[%clk 0:03:01]} 5. Nc3 {[%clk 0:02:54]}  Nc6 {[%clk 0:03:02]} 6. f3 {[%clk 0:02:53]}  e5 {[%clk 0:03:01]} 7. Nb3 {[%clk 0:02:53]}  Be7 {[%clk 0:03:01]} 8. Be3 {[%clk 0:02:53]}  O-O {[%clk 0:02:59]} 9. Qd2 {[%clk 0:02:54]}  a5 {[%clk 0:03:00]} 10. Bb5 {[%clk 0:02:53]}  Na7 {[%clk 0:03:00]} 11. Bxa7 {[%clk 0:02:37]}  Rxa7 {[%clk 0:03:01]} 12. O-O-O {[%clk 0:02:37]}  Be6 {[%clk 0:03:01]} 13. g4 {[%clk 0:02:37]}  Nxg4 {[%clk 0:02:35]} 14. fxg4 {[%clk 0:02:36]}  Bg5 {[%clk 0:02:34]} 0-1


[Site "https://www.chess.com"]

[Event "Titled Tuesday Blitz March 08 Early 2022"]
[White "Sargissyan, Sargis"]
[Black "Sailer, Mike"]
[WhiteFideId "13303210"]
[BlackFideId "2012901"]
[WhiteElo "2174"]
[BlackElo "2109"]
[Result "1-0"]
[Round "02"]
[TimeControl "180+1"]
[Date "2022.03.09"]
[WhiteClock "0:00:07"]
[BlackClock "0:00:01"]

1. e4 {[%clk 0:03:00]}  d5 {[%clk 0:02:59]} 2. exd5 {[%clk 0:03:00]}  Qxd5 {[%clk 0:02:59]} 3. Nc3 {[%clk 0:03:01]}  Qd6 {[%clk 0:03:00]} 4. d4 {[%clk 0:03:00]}  Nf6 {[%clk 0:03:01]} 5. Nf3 {[%clk 0:03:01]}  c6 {[%clk 0:03:00]} 6. Ne5 {[%clk 0:03:01]}  Nbd7 {[%clk 0:03:00]} 7. Nc4 {[%clk 0:02:56]}  Qc7 {[%clk 0:03:01]} 8. Qf3 {[%clk 0:02:56]}  Nb6 {[%clk 0:03:00]} 9. Bf4 {[%clk 0:02:57]}  Qd8 {[%clk 0:03:01]} 10. O-O-O {[%clk 0:02:49]}  Bg4 {[%clk 0:02:48]} 11. Qg3 {[%clk 0:02:43]}  Bxd1 {[%clk 0:02:42]} 12. Nxd1 {[%clk 0:02:27]}  Nh5 {[%clk 0:02:35]} 13. Qf3 {[%clk 0:02:23]}  Nxf4 {[%clk 0:02:35]} 14. Qxf4 {[%clk 0:02:24]}  Nxc4 {[%clk 0:02:10]} 15. Bxc4 {[%clk 0:02:23]}  e6 {[%clk 0:02:10]} 16. Re1 {[%clk 0:02:18]}  Be7 {[%clk 0:02:11]} 17. Ne3 {[%clk 0:02:02]}  Bg5 {[%clk 0:02:03]} 18. Qe4 {[%clk 0:01:59]}  Bxe3+ {[%clk 0:02:02]} 19. Rxe3 {[%clk 0:01:58]}  Qd7 {[%clk 0:01:52]} 20. Ra3 {[%clk 0:00:44]}  a6 {[%clk 0:01:34]} 21. Qe5 {[%clk 0:00:21]}  O-O {[%clk 0:01:16]} 22. Rg3 {[%clk 0:00:18]}  g6 {[%clk 0:01:14]} 23. Rh3 {[%clk 0:00:14]}  Rad8 {[%clk 0:01:05]} 24. c3 {[%clk 0:00:12]}  Rfe8 {[%clk 0:00:54]} 25. Qe3 {[%clk 0:00:10]}  f6 {[%clk 0:00:44]} 26. Qe4 {[%clk 0:00:07]}  Re7 {[%clk 0:00:40]} 27. Re3 {[%clk 0:00:07]}  Rde8 {[%clk 0:00:41]} 28. Qh4 {[%clk 0:00:07]}  Qd6 {[%clk 0:00:40]} 29. Qxf6 {[%clk 0:00:07]}  b5 {[%clk 0:00:24]} 30. Bb3 {[%clk 0:00:07]}  a5 {[%clk 0:00:22]} 31. a3 {[%clk 0:00:07]}  b4 {[%clk 0:00:22]} 32. axb4 {[%clk 0:00:07]}  axb4 {[%clk 0:00:21]} 33. f3 {[%clk 0:00:06]}  bxc3 {[%clk 0:00:20]} 34. bxc3 {[%clk 0:00:06]}  c5 {[%clk 0:00:06]} 35. Qe5 {[%clk 0:00:05]}  Qxe5 {[%clk 0:00:05]} 36. Rxe5 {[%clk 0:00:06]}  cxd4 {[%clk 0:00:06]} 37. cxd4 {[%clk 0:00:07]}  Kf7 {[%clk 0:00:06]} 38. Kd2 {[%clk 0:00:07]}  Kf6 {[%clk 0:00:04]} 39. f4 {[%clk 0:00:07]}  Rd8 {[%clk 0:00:02]} 40. Ke3 {[%clk 0:00:07]}  Rd6 {[%clk 0:00:01]} 41. g4 {[%clk 0:00:07]} 1-0


[Site "https://www.chess.com"]

[Event "Titled Tuesday Blitz March 08 Early 2022"]
[White "Sarkar, Justin"]
[Black "Krysa, Leandro"]
[WhiteFideId "2010011"]
[BlackFideId "116807"]
[WhiteElo "2038"]
[BlackElo "2490"]
[Result "1-0"]
[Round "02"]
[TimeControl "180+1"]
[Date "2022.03.09"]
[WhiteClock "0:00:07"]
[BlackClock "0:00:17"]

1. e4 {[%clk 0:03:00]}  e5 {[%clk 0:02:56]} 2. Nc3 {[%clk 0:02:58]}  Nf6 {[%clk 0:02:53]} 3. Bc4 {[%clk 0:02:55]}  Nc6 {[%clk 0:02:46]} 4. Nf3 {[%clk 0:02:18]}  Nxe4 {[%clk 0:02:44]} 5. O-O {[%clk 0:02:16]}  Nxc3 {[%clk 0:02:37]} 6. dxc3 {[%clk 0:02:17]}  Be7 {[%clk 0:02:31]} 7. Qd5 {[%clk 0:02:16]}  O-O {[%clk 0:02:30]} 8. Nxe5 {[%clk 0:02:15]}  Nxe5 {[%clk 0:02:30]} 9. Qxe5 {[%clk 0:02:14]}  Bf6 {[%clk 0:02:23]} 10. Qg3 {[%clk 0:02:13]}  d5 {[%clk 0:02:20]} 11. Bd3 {[%clk 0:02:13]}  c6 {[%clk 0:02:16]} 12. Bf4 {[%clk 0:02:03]}  Re8 {[%clk 0:02:13]} 13. Bc7 {[%clk 0:01:46]}  Qe7 {[%clk 0:02:01]} 14. Bd6 {[%clk 0:01:41]}  Qe6 {[%clk 0:01:52]} 15. f3 {[%clk 0:01:32]}  Be7 {[%clk 0:01:17]} 16. Rfe1 {[%clk 0:01:15]}  Qd7 {[%clk 0:01:09]} 17. Rxe7 {[%clk 0:00:53]}  Rxe7 {[%clk 0:01:02]} 18. Qh4 {[%clk 0:00:52]}  Re4 {[%clk 0:00:49]} 19. fxe4 {[%clk 0:00:24]}  Qxd6 {[%clk 0:00:47]} 20. e5 {[%clk 0:00:14]}  Qc5+ {[%clk 0:00:40]} 21. Kh1 {[%clk 0:00:13]}  h6 {[%clk 0:00:39]} 22. Qd8+ {[%clk 0:00:09]}  Qf8 {[%clk 0:00:38]} 23. Bh7+ {[%clk 0:00:09]}  Kxh7 {[%clk 0:00:33]} 24. Qxf8 {[%clk 0:00:09]}  b6 {[%clk 0:00:31]} 25. Rf1 {[%clk 0:00:09]}  Bb7 {[%clk 0:00:23]} 26. Qxf7 {[%clk 0:00:09]}  Ba6 {[%clk 0:00:23]} 27. Re1 {[%clk 0:00:08]}  Bc4 {[%clk 0:00:18]} 28. e6 {[%clk 0:00:08]}  d4 {[%clk 0:00:18]} 29. cxd4 {[%clk 0:00:07]}  Rd8 {[%clk 0:00:18]} 30. Qf5+ {[%clk 0:00:07]}  Kh8 {[%clk 0:00:17]} 31. e7 {[%clk 0:00:07]}  Re8 {[%clk 0:00:17]} 32. Qf8+ {[%clk 0:00:07]} 1-0


[Site "https://www.chess.com"]

[Event "Titled Tuesday Blitz March 08 Early 2022"]
[White "Shahaliyev, Ismayil"]
[Black "Garv Gaur"]
[WhiteFideId "13406388"]
[BlackFideId "45030839"]
[WhiteElo "2105"]
[BlackElo "1950"]
[Result "1-0"]
[Round "02"]
[TimeControl "180+1"]
[Date "2022.03.09"]
[WhiteClock "0:00:45"]
[BlackClock "0:00:58"]

1. d4 {[%clk 0:02:55]}  d5 {[%clk 0:02:59]} 2. Nf3 {[%clk 0:02:55]}  Nf6 {[%clk 0:02:59]} 3. c4 {[%clk 0:02:55]}  e6 {[%clk 0:02:59]} 4. Nc3 {[%clk 0:02:55]}  Be7 {[%clk 0:02:59]} 5. Bf4 {[%clk 0:02:51]}  O-O {[%clk 0:02:58]} 6. e3 {[%clk 0:02:50]}  c5 {[%clk 0:02:59]} 7. cxd5 {[%clk 0:02:48]}  cxd4 {[%clk 0:02:55]} 8. Qxd4 {[%clk 0:02:42]}  exd5 {[%clk 0:02:54]} 9. Rd1 {[%clk 0:02:38]}  Nc6 {[%clk 0:02:49]} 10. Qa4 {[%clk 0:02:38]}  Qb6 {[%clk 0:02:47]} 11. Qb5 {[%clk 0:02:21]}  Be6 {[%clk 0:02:44]} 12. Be2 {[%clk 0:02:15]}  Ne4 {[%clk 0:02:29]} 13. O-O {[%clk 0:01:48]}  Nxc3 {[%clk 0:02:09]} 14. bxc3 {[%clk 0:01:49]}  Bf6 {[%clk 0:02:10]} 15. Nd4 {[%clk 0:01:45]}  Rac8 {[%clk 0:02:05]} 16. Qxb6 {[%clk 0:01:23]}  axb6 {[%clk 0:02:05]} 17. Nxe6 {[%clk 0:01:24]}  fxe6 {[%clk 0:02:05]} 18. Bg4 {[%clk 0:01:22]}  Rce8 {[%clk 0:01:45]} 19. Bd6 {[%clk 0:01:09]}  Rf7 {[%clk 0:01:45]} 20. Rb1 {[%clk 0:01:08]}  Bxc3 {[%clk 0:01:44]} 21. Rxb6 {[%clk 0:01:08]}  Be5 {[%clk 0:01:44]} 22. Bxe5 {[%clk 0:01:07]}  Nxe5 {[%clk 0:01:45]} 23. Bxe6 {[%clk 0:01:07]}  Re7 {[%clk 0:01:27]} 24. Bxd5 {[%clk 0:01:05]}  Nc6 {[%clk 0:01:20]} 25. Rfb1 {[%clk 0:01:02]}  Nd8 {[%clk 0:01:14]} 26. a4 {[%clk 0:01:02]}  Kf8 {[%clk 0:01:13]} 27. Bxf7 {[%clk 0:00:59]}  Kxf7 {[%clk 0:01:14]} 28. R1b4 {[%clk 0:00:56]}  Rc7 {[%clk 0:01:07]} 29. g4 {[%clk 0:00:57]}  Ke7 {[%clk 0:01:02]} 30. h4 {[%clk 0:00:56]}  Kd7 {[%clk 0:01:01]} 31. Rf4 {[%clk 0:00:53]}  Ke7 {[%clk 0:00:59]} 32. Re4+ {[%clk 0:00:52]}  Kd7 {[%clk 0:01:00]} 33. Rbb4 {[%clk 0:00:47]}  Nc6 {[%clk 0:00:58]} 34. Rbc4 {[%clk 0:00:47]}  Kd6 {[%clk 0:00:59]} 35. Kg2 {[%clk 0:00:46]}  Rc8 {[%clk 0:00:59]} 36. Rf4 {[%clk 0:00:46]}  Ke6 {[%clk 0:00:58]} 37. Rce4+ {[%clk 0:00:46]}  Ne5 {[%clk 0:00:58]} 38. Rf5 {[%clk 0:00:45]}  Rc5 {[%clk 0:00:58]} 39. f4 {[%clk 0:00:45]} 1-0


[Site "https://www.chess.com"]

[Event "Titled Tuesday Blitz March 08 Early 2022"]
[White "Shukhman, Anna"]
[Black "Siva Mahadevan"]
[WhiteFideId "54180058"]
[BlackFideId "25043153"]
[WhiteElo "1665"]
[BlackElo "2203"]
[Result "0-1"]
[Round "02"]
[TimeControl "180+1"]
[Date "2022.03.09"]
[WhiteClock "0:00:08"]
[BlackClock "0:01:05"]

1. e4 {[%clk 0:03:00]}  c5 {[%clk 0:02:59]} 2. Nf3 {[%clk 0:03:00]}  Nc6 {[%clk 0:03:00]} 3. Bb5 {[%clk 0:02:59]}  Na5 {[%clk 0:03:00]} 4. O-O {[%clk 0:02:55]}  a6 {[%clk 0:03:00]} 5. Be2 {[%clk 0:02:55]}  b5 {[%clk 0:03:01]} 6. c3 {[%clk 0:02:55]}  Bb7 {[%clk 0:03:01]} 7. d4 {[%clk 0:02:53]}  cxd4 {[%clk 0:03:02]} 8. cxd4 {[%clk 0:02:52]}  Bxe4 {[%clk 0:03:01]} 9. d5 {[%clk 0:02:43]}  Nf6 {[%clk 0:03:01]} 10. Nc3 {[%clk 0:02:41]}  Bg6 {[%clk 0:03:02]} 11. b4 {[%clk 0:02:38]}  Rc8 {[%clk 0:02:54]} 12. Bb2 {[%clk 0:02:30]}  Nc4 {[%clk 0:02:52]} 13. Bxc4 {[%clk 0:02:27]}  Rxc4 {[%clk 0:02:53]} 14. Ne5 {[%clk 0:02:19]}  Rc8 {[%clk 0:02:52]} 15. Nxg6 {[%clk 0:02:03]}  hxg6 {[%clk 0:02:53]} 16. a4 {[%clk 0:02:00]}  e6 {[%clk 0:02:28]} 17. d6 {[%clk 0:01:55]}  Qb6 {[%clk 0:02:24]} 18. axb5 {[%clk 0:01:47]}  axb5 {[%clk 0:02:25]} 19. g3 {[%clk 0:01:40]}  Bxd6 {[%clk 0:02:20]} 20. Nxb5 {[%clk 0:01:36]}  Bxb4 {[%clk 0:01:54]} 21. Qa4 {[%clk 0:00:40]}  Bc5 {[%clk 0:01:46]} 22. Rfb1 {[%clk 0:00:28]}  Bxf2+ {[%clk 0:01:42]} 23. Kg2 {[%clk 0:00:27]}  Qc6+ {[%clk 0:01:41]} 24. Kxf2 {[%clk 0:00:23]}  Rxh2+ {[%clk 0:01:40]} 25. Ke3 {[%clk 0:00:23]}  Qg2 {[%clk 0:01:07]} 26. Nd6+ {[%clk 0:00:22]}  Kf8 {[%clk 0:01:07]} 27. Rd1 {[%clk 0:00:11]}  Qe2+ {[%clk 0:01:06]} 28. Kd4 {[%clk 0:00:10]}  Qxb2+ {[%clk 0:01:06]} 29. Ke3 {[%clk 0:00:10]}  Rc3+ {[%clk 0:01:05]} 30. Kf4 {[%clk 0:00:08]}  Qf2+ {[%clk 0:01:05]} 31. Ke5 {[%clk 0:00:08]}  Rc5+ {[%clk 0:01:05]} 0-1


[Site "https://www.chess.com"]

[Event "Titled Tuesday Blitz March 08 Early 2022"]
[White "Silva, Miguel Antonio Neto"]
[Black "Papasimakopoulos, Alexandros"]
[WhiteFideId "1911929"]
[BlackFideId "4244125"]
[WhiteElo "2204"]
[BlackElo "2340"]
[Result "1-0"]
[Round "02"]
[TimeControl "180+1"]
[Date "2022.03.09"]
[WhiteClock "0:00:29"]
[BlackClock "0:00:15"]

1. e4 {[%clk 0:03:00]}  e6 {[%clk 0:02:17]} 2. d4 {[%clk 0:02:59]}  d5 {[%clk 0:02:18]} 3. exd5 {[%clk 0:02:57]}  exd5 {[%clk 0:02:18]} 4. Bd3 {[%clk 0:02:55]}  Nc6 {[%clk 0:02:17]} 5. c3 {[%clk 0:02:53]}  Bd6 {[%clk 0:02:17]} 6. Ne2 {[%clk 0:02:48]}  Qh4 {[%clk 0:02:17]} 7. Be3 {[%clk 0:02:41]}  Bg4 {[%clk 0:02:10]} 8. Qd2 {[%clk 0:02:34]}  Qe7 {[%clk 0:01:55]} 9. h3 {[%clk 0:02:22]}  Bh5 {[%clk 0:01:53]} 10. O-O {[%clk 0:02:18]}  O-O-O {[%clk 0:01:51]} 11. Nf4 {[%clk 0:02:15]}  Bxf4 {[%clk 0:01:45]} 12. Bxf4 {[%clk 0:02:14]}  Bg6 {[%clk 0:01:43]} 13. Na3 {[%clk 0:02:10]}  a6 {[%clk 0:01:37]} 14. Rfe1 {[%clk 0:02:03]}  Qd7 {[%clk 0:01:36]} 15. b4 {[%clk 0:02:01]}  Bxd3 {[%clk 0:01:23]} 16. Qxd3 {[%clk 0:02:01]}  Na7 {[%clk 0:01:15]} 17. Rab1 {[%clk 0:01:56]}  Nf6 {[%clk 0:01:05]} 18. b5 {[%clk 0:01:53]}  axb5 {[%clk 0:01:04]} 19. Nxb5 {[%clk 0:01:51]}  Nxb5 {[%clk 0:01:04]} 20. Rxb5 {[%clk 0:01:49]}  b6 {[%clk 0:00:59]} 21. a4 {[%clk 0:01:43]}  Rhe8 {[%clk 0:00:49]} 22. Reb1 {[%clk 0:01:42]}  Qc6 {[%clk 0:00:47]} 23. a5 {[%clk 0:01:39]}  Nd7 {[%clk 0:00:42]} 24. axb6 {[%clk 0:01:35]}  cxb6 {[%clk 0:00:24]} 25. Ra1 {[%clk 0:01:25]}  Kb7 {[%clk 0:00:17]} 26. Rbb1 {[%clk 0:01:08]}  Ra8 {[%clk 0:00:17]} 27. Rxa8 {[%clk 0:01:03]}  Rxa8 {[%clk 0:00:18]} 28. Re1 {[%clk 0:01:03]}  Ra2 {[%clk 0:00:07]} 29. Re7 {[%clk 0:00:58]}  Ra3 {[%clk 0:00:07]} 30. Qf5 {[%clk 0:00:52]}  Kc8 {[%clk 0:00:07]} 31. Qxf7 {[%clk 0:00:49]}  Rxc3 {[%clk 0:00:03]} 32. Qe8+ {[%clk 0:00:48]}  Kb7 {[%clk 0:00:04]} 33. Rxd7+ {[%clk 0:00:46]}  Ka6 {[%clk 0:00:04]} 34. Qe7 {[%clk 0:00:35]}  Rc2 {[%clk 0:00:04]} 35. Qa3+ {[%clk 0:00:30]}  Kb5 {[%clk 0:00:04]} 36. Qb3+ {[%clk 0:00:28]}  Ka6 {[%clk 0:00:04]} 37. Bb8 {[%clk 0:00:27]}  Rc1+ {[%clk 0:00:02]} 38. Kh2 {[%clk 0:00:26]}  Qxd7 {[%clk 0:00:03]} 39. Qa3+ {[%clk 0:00:26]}  Kb7 {[%clk 0:00:03]} 40. Qxc1 {[%clk 0:00:24]}  Kxb8 {[%clk 0:00:04]} 41. Qf4+ {[%clk 0:00:24]}  Qc7 {[%clk 0:00:04]} 42. Kg3 {[%clk 0:00:22]}  b5 {[%clk 0:00:04]} 43. Qxc7+ {[%clk 0:00:21]}  Kxc7 {[%clk 0:00:05]} 44. Kf4 {[%clk 0:00:19]}  Kd6 {[%clk 0:00:05]} 45. Ke3 {[%clk 0:00:19]}  Ke6 {[%clk 0:00:06]} 46. g4 {[%clk 0:00:19]}  h5 {[%clk 0:00:06]} 47. f4 {[%clk 0:00:20]}  hxg4 {[%clk 0:00:05]} 48. hxg4 {[%clk 0:00:19]}  Kd6 {[%clk 0:00:05]} 49. Kd3 {[%clk 0:00:20]}  Kc6 {[%clk 0:00:04]} 50. Kc3 {[%clk 0:00:20]}  Kb7 {[%clk 0:00:04]} 51. Kb3 {[%clk 0:00:20]}  Kc6 {[%clk 0:00:04]} 52. Kb4 {[%clk 0:00:20]}  g6 {[%clk 0:00:03]} 53. f5 {[%clk 0:00:20]}  g5 {[%clk 0:00:02]} 54. f6 {[%clk 0:00:20]}  Kd6 {[%clk 0:00:02]} 55. f7 {[%clk 0:00:20]}  Ke7 {[%clk 0:00:03]} 56. Kxb5 {[%clk 0:00:21]}  Kxf7 {[%clk 0:00:03]} 57. Kc5 {[%clk 0:00:21]}  Ke6 {[%clk 0:00:04]} 58. Kc6 {[%clk 0:00:21]}  Ke7 {[%clk 0:00:04]} 59. Kxd5 {[%clk 0:00:22]}  Kd7 {[%clk 0:00:04]} 60. Ke5 {[%clk 0:00:22]}  Kc6 {[%clk 0:00:05]} 61. Kf5 {[%clk 0:00:23]}  Kd5 {[%clk 0:00:06]} 62. Kxg5 {[%clk 0:00:24]}  Kxd4 {[%clk 0:00:06]} 63. Kf6 {[%clk 0:00:25]}  Kd5 {[%clk 0:00:06]} 64. g5 {[%clk 0:00:26]}  Kd6 {[%clk 0:00:07]} 65. g6 {[%clk 0:00:26]}  Kd7 {[%clk 0:00:08]} 66. g7 {[%clk 0:00:27]}  Ke8 {[%clk 0:00:09]} 67. g8=Q+ {[%clk 0:00:27]}  Kd7 {[%clk 0:00:10]} 68. Qe6+ {[%clk 0:00:27]}  Kc7 {[%clk 0:00:10]} 69. Qd5 {[%clk 0:00:28]}  Kb6 {[%clk 0:00:10]} 70. Qc4 {[%clk 0:00:28]}  Kb7 {[%clk 0:00:11]} 71. Qc5 {[%clk 0:00:27]}  Kb8 {[%clk 0:00:11]} 72. Qe7 {[%clk 0:00:27]}  Kc8 {[%clk 0:00:12]} 73. Ke6 {[%clk 0:00:28]}  Kb8 {[%clk 0:00:13]} 74. Kd6 {[%clk 0:00:29]}  Ka8 {[%clk 0:00:14]} 75. Kc6 {[%clk 0:00:29]}  Kb8 {[%clk 0:00:15]} 76. Qb7# {[%clk 0:00:29]} 1-0


[Site "https://www.chess.com"]

[Event "Titled Tuesday Blitz March 08 Early 2022"]
[White "Stepanencu, Nicodim-Cosmin"]
[Black "Castillo Pena, Patricia Evarista"]
[WhiteFideId "1256220"]
[BlackFideId "6412106"]
[WhiteElo "1913"]
[BlackElo "1918"]
[Result "1-0"]
[Round "02"]
[TimeControl "180+1"]
[Date "2022.03.09"]
[WhiteClock "0:01:35"]
[BlackClock "0:00:03"]

1. b3 {[%clk 0:03:00]}  d5 {[%clk 0:02:35]} 2. Bb2 {[%clk 0:03:00]}  Nf6 {[%clk 0:02:15]} 3. e3 {[%clk 0:02:55]}  c5 {[%clk 0:02:13]} 4. Nf3 {[%clk 0:02:54]}  Nc6 {[%clk 0:02:08]} 5. Bb5 {[%clk 0:02:52]}  Bd7 {[%clk 0:02:05]} 6. c4 {[%clk 0:02:50]}  e6 {[%clk 0:01:58]} 7. cxd5 {[%clk 0:02:50]}  exd5 {[%clk 0:01:25]} 8. O-O {[%clk 0:02:47]}  Bd6 {[%clk 0:01:24]} 9. d4 {[%clk 0:02:40]}  cxd4 {[%clk 0:01:18]} 10. Nxd4 {[%clk 0:02:41]}  Nxd4 {[%clk 0:00:38]} 11. Bxd7+ {[%clk 0:02:38]}  Qxd7 {[%clk 0:00:38]} 12. Qxd4 {[%clk 0:02:39]}  O-O {[%clk 0:00:34]} 13. Nc3 {[%clk 0:02:39]}  Rfd8 {[%clk 0:00:32]} 14. Rfd1 {[%clk 0:02:29]}  Rac8 {[%clk 0:00:26]} 15. g3 {[%clk 0:02:27]}  Bb8 {[%clk 0:00:18]} 16. Qh4 {[%clk 0:02:21]}  Qf5 {[%clk 0:00:11]} 17. Rd2 {[%clk 0:02:14]}  d4 {[%clk 0:00:10]} 18. Rxd4 {[%clk 0:02:11]}  Rxd4 {[%clk 0:00:09]} 19. Qxd4 {[%clk 0:02:11]}  h6 {[%clk 0:00:08]} 20. Rd1 {[%clk 0:02:03]}  Ng4 {[%clk 0:00:07]} 21. Rd2 {[%clk 0:01:59]}  Be5 {[%clk 0:00:06]} 22. Qd5 {[%clk 0:01:48]}  Qf6 {[%clk 0:00:03]} 23. Qd7 {[%clk 0:01:36]}  Rd8 {[%clk 0:00:03]} 24. Qxd8+ {[%clk 0:01:35]} 1-0


[Site "https://www.chess.com"]

[Event "Titled Tuesday Blitz March 08 Early 2022"]
[White "Suder, Jakub"]
[Black "Svane, Frederik"]
[WhiteFideId "1195310"]
[BlackFideId "12923044"]
[WhiteElo "2058"]
[BlackElo "2459"]
[Result "0-1"]
[Round "02"]
[TimeControl "180+1"]
[Date "2022.03.09"]
[WhiteClock "0:00:04"]
[BlackClock "0:00:07"]

1. d4 {[%clk 0:03:00]}  Nf6 {[%clk 0:03:00]} 2. c4 {[%clk 0:03:00]}  e6 {[%clk 0:03:01]} 3. Nc3 {[%clk 0:02:56]}  Bb4 {[%clk 0:03:01]} 4. f3 {[%clk 0:02:55]}  c5 {[%clk 0:02:58]} 5. d5 {[%clk 0:02:55]}  b5 {[%clk 0:02:58]} 6. e4 {[%clk 0:02:55]}  d6 {[%clk 0:02:59]} 7. Ne2 {[%clk 0:02:51]}  bxc4 {[%clk 0:02:52]} 8. Nf4 {[%clk 0:02:47]}  e5 {[%clk 0:02:52]} 9. Ne2 {[%clk 0:02:47]}  Nbd7 {[%clk 0:02:49]} 10. Ng3 {[%clk 0:02:46]}  Nb6 {[%clk 0:02:50]} 11. Be2 {[%clk 0:02:46]}  Ng8 {[%clk 0:02:50]} 12. O-O {[%clk 0:02:45]}  Ne7 {[%clk 0:02:51]} 13. f4 {[%clk 0:02:39]}  exf4 {[%clk 0:02:50]} 14. Nh5 {[%clk 0:02:34]}  O-O {[%clk 0:02:49]} 15. Bxf4 {[%clk 0:02:24]}  Ng6 {[%clk 0:02:48]} 16. Bg3 {[%clk 0:02:24]}  Re8 {[%clk 0:02:38]} 17. Bf3 {[%clk 0:02:17]}  Ne5 {[%clk 0:02:34]} 18. Qd2 {[%clk 0:02:11]}  Rb8 {[%clk 0:02:16]} 19. Qf4 {[%clk 0:01:32]}  Rb7 {[%clk 0:01:43]} 20. Nd1 {[%clk 0:01:28]}  f6 {[%clk 0:01:02]} 21. Qh4 {[%clk 0:01:18]}  Ng6 {[%clk 0:00:58]} 22. Nxf6+ {[%clk 0:01:11]}  gxf6 {[%clk 0:00:55]} 23. Qh6 {[%clk 0:01:04]}  Rg7 {[%clk 0:00:41]} 24. Bh5 {[%clk 0:00:58]}  Qe7 {[%clk 0:00:28]} 25. Nf2 {[%clk 0:00:53]}  c3 {[%clk 0:00:24]} 26. Ng4 {[%clk 0:00:39]}  cxb2 {[%clk 0:00:19]} 27. Rab1 {[%clk 0:00:32]}  Bc3 {[%clk 0:00:18]} 28. Rf3 {[%clk 0:00:25]}  Bd4+ {[%clk 0:00:17]} 29. Kh1 {[%clk 0:00:25]}  Bxg4 {[%clk 0:00:17]} 30. Bxg4 {[%clk 0:00:24]}  Qxe4 {[%clk 0:00:17]} 31. Bf5 {[%clk 0:00:23]}  Qxd5 {[%clk 0:00:12]} 32. h4 {[%clk 0:00:17]}  Re5 {[%clk 0:00:11]} 33. Bxe5 {[%clk 0:00:11]}  Nxe5 {[%clk 0:00:08]} 34. Ra3 {[%clk 0:00:04]}  Qxg2# {[%clk 0:00:07]} 0-1


[Site "https://www.chess.com"]

[Event "Titled Tuesday Blitz March 08 Early 2022"]
[White "Svane, Rasmus"]
[Black "Al Hosani, Omran"]
[WhiteFideId "4657101"]
[BlackFideId "9308733"]
[WhiteElo "2645"]
[BlackElo "2267"]
[Result "1-0"]
[Round "02"]
[TimeControl "180+1"]
[Date "2022.03.08"]
[WhiteClock "0:00:05"]
[BlackClock "0:00:03"]

1. Nf3 {[%clk 0:03:00]}  Nf6 {[%clk 0:02:52]} 2. g3 {[%clk 0:03:01]}  e6 {[%clk 0:02:41]} 3. Bg2 {[%clk 0:03:01]}  d5 {[%clk 0:02:40]} 4. O-O {[%clk 0:03:01]}  Be7 {[%clk 0:02:38]} 5. c4 {[%clk 0:03:01]}  O-O {[%clk 0:02:39]} 6. b3 {[%clk 0:03:02]}  c5 {[%clk 0:02:38]} 7. cxd5 {[%clk 0:03:02]}  exd5 {[%clk 0:02:39]} 8. d4 {[%clk 0:03:02]}  Nc6 {[%clk 0:02:39]} 9. Bb2 {[%clk 0:03:03]}  Be6 {[%clk 0:02:39]} 10. Nc3 {[%clk 0:03:02]}  Rc8 {[%clk 0:02:39]} 11. Rc1 {[%clk 0:03:02]}  Re8 {[%clk 0:02:30]} 12. e3 {[%clk 0:03:01]}  a6 {[%clk 0:02:30]} 13. dxc5 {[%clk 0:02:59]}  Bxc5 {[%clk 0:02:30]} 14. Ne2 {[%clk 0:03:00]}  Ba7 {[%clk 0:02:26]} 15. Nf4 {[%clk 0:02:58]}  Ne4 {[%clk 0:02:24]} 16. Nd2 {[%clk 0:02:47]}  Bf5 {[%clk 0:02:02]} 17. Nf3 {[%clk 0:02:16]}  Be6 {[%clk 0:01:44]} 18. Nh5 {[%clk 0:02:16]}  f6 {[%clk 0:01:42]} 19. Nf4 {[%clk 0:02:16]}  Bf7 {[%clk 0:01:41]} 20. Nd2 {[%clk 0:02:09]}  Qa5 {[%clk 0:01:27]} 21. Nxe4 {[%clk 0:02:03]}  dxe4 {[%clk 0:01:25]} 22. Qg4 {[%clk 0:02:03]}  h5 {[%clk 0:01:15]} 23. Qd7 {[%clk 0:01:43]}  Qxa2 {[%clk 0:01:08]} 24. Qxb7 {[%clk 0:01:21]}  Qxb3 {[%clk 0:01:05]} 25. Qxa6 {[%clk 0:01:11]}  Qxb2 {[%clk 0:00:30]} 26. Rxc6 {[%clk 0:01:10]}  Rxc6 {[%clk 0:00:30]} 27. Qxc6 {[%clk 0:01:11]}  Qe5 {[%clk 0:00:30]} 28. Rd1 {[%clk 0:01:07]}  g5 {[%clk 0:00:28]} 29. Nd5 {[%clk 0:01:07]}  Kg7 {[%clk 0:00:20]} 30. Qb7 {[%clk 0:00:58]}  Bc5 {[%clk 0:00:17]} 31. Qc6 {[%clk 0:00:47]}  Bf8 {[%clk 0:00:16]} 32. Nb6 {[%clk 0:00:41]}  Re6 {[%clk 0:00:14]} 33. Qb7 {[%clk 0:00:35]}  Re7 {[%clk 0:00:10]} 34. Nd7 {[%clk 0:00:33]}  Qe6 {[%clk 0:00:09]} 35. Qc8 {[%clk 0:00:27]}  Be8 {[%clk 0:00:08]} 36. Nb6 {[%clk 0:00:12]}  Qxb6 {[%clk 0:00:06]} 37. h3 {[%clk 0:00:12]}  Qe6 {[%clk 0:00:05]} 38. Qb8 {[%clk 0:00:12]}  g4 {[%clk 0:00:06]} 39. h4 {[%clk 0:00:13]}  Rf7 {[%clk 0:00:04]} 40. Bf1 {[%clk 0:00:13]}  Bd6 {[%clk 0:00:04]} 41. Qa8 {[%clk 0:00:13]}  Re7 {[%clk 0:00:05]} 42. Qa6 {[%clk 0:00:11]}  Be5 {[%clk 0:00:05]} 43. Qa8 {[%clk 0:00:10]}  Bf7 {[%clk 0:00:06]} 44. Qxe4 {[%clk 0:00:10]}  f5 {[%clk 0:00:04]} 45. Qa8 {[%clk 0:00:10]}  Qf6 {[%clk 0:00:05]} 46. Rd8 {[%clk 0:00:09]}  f4 {[%clk 0:00:02]} 47. exf4 {[%clk 0:00:09]}  Bd4 {[%clk 0:00:02]} 48. Qc8 {[%clk 0:00:05]}  Bxf2+ {[%clk 0:00:02]} 49. Kxf2 {[%clk 0:00:05]}  Qb6+ {[%clk 0:00:03]} 50. Kg2 {[%clk 0:00:04]}  Qe3 {[%clk 0:00:02]} 51. Rd3 {[%clk 0:00:04]}  Qe4+ {[%clk 0:00:02]} 52. Kf2 {[%clk 0:00:04]}  Qb4 {[%clk 0:00:01]} 53. Qc3+ {[%clk 0:00:05]}  Qxc3 {[%clk 0:00:02]} 54. Rxc3 {[%clk 0:00:05]}  Ra7 {[%clk 0:00:02]} 55. Be2 {[%clk 0:00:05]}  Ra2 {[%clk 0:00:02]} 56. Ke3 {[%clk 0:00:06]}  Kf6 {[%clk 0:00:03]} 57. Rc6+ {[%clk 0:00:06]}  Ke7 {[%clk 0:00:03]} 58. Rc7+ {[%clk 0:00:06]}  Ke8 {[%clk 0:00:03]} 59. Bb5+ {[%clk 0:00:05]} 1-0


[Site "https://www.chess.com"]